bitfinex/quotes_ETHUSD_20241216
["timestamp","ask_amount","ask_price","bid_price","bid_amount"]
[1734353104141,2.56357,3900.8,3899.9,0.3116]
[1734353105581,2.56324,3901.3,3899.9,0.3116]
[1734353105788,2.56357,3900.8,3899.9,0.3116]
[1734353105956,0.49025332,3901.4,3899.9,0.3116]
[1734353106158,2.56351,3900.9,3899.9,0.3116]
[1734353106340,0.55,3901.4,3899.9,0.3116]
[1734353106536,2.56372,3900.6,3899.9,0.3116]
[1734353106939,0.55,3901.4,3899.9,0.3116]
[1734353106940,2.56383,3900.4,3899.9,0.3116]
[1734353107279,0.02564005,3900.3,3899.9,0.3116]
[1734353107444,2.56383,3900.4,3899.9,0.3116]
[1734353107845,2.56344,3901.0,3899.9,0.3116]
[1734353108078,4.61672877,3901.4,3899.9,0.3116]
[1734353108079,2.56363,3900.8,3899.9,0.3116]
[1734353108985,2.56331,3901.3,3899.9,0.3116]
[1734353109142,2.56352,3900.9,3899.9,0.3116]
[1734353109350,2.56431,3899.7,3899.5,0.3116]
[1734353109580,2.56413,3900.0,3899.5,0.3116]
[1734353110044,2.56357,3900.8,3899.5,0.3116]
[1734353110267,0.8249,3900.9,3899.5,1.08092]
[1734353110471,2.5637,3900.7,3899.6,0.7693]
[1734353110678,2.5637,3900.7,3899.5,1.08092]
[1734353110890,2.5637,3900.7,3899.6,0.7693]
[1734353111250,2.56342,3901.1,3899.8,0.3116]
[1734353111445,2.56351,3900.9,3900.1,0.3116]
[1734353111758,2.56351,3900.9,3898.9,3.12948598]
[1734353111759,3.23610196,3900.8,3898.9,3.76942]
[1734353112120,3.23610196,3900.8,3898.3,1.06783303]
[1734353112121,2.56415,3900.0,3899.0,0.3116]
[1734353112247,0.55,3900.7,3899.0,1.08102]
[1734353112248,2.5637,3900.6,3899.0,1.08102]
[1734353112447,2.5637,3900.6,3899.1,0.7694]
[1734353112448,2.56404,3900.1,3899.1,0.7694]
[1734353112670,2.5637,3900.6,3899.1,0.37694]
[1734353112888,2.56397,3900.2,3899.2,0.79502322]
[1734353113061,3.21046191,3900.8,3899.4,0.76934]
[1734353113062,2.56379,3900.5,3899.4,0.76934]
[1734353113261,0.7517,3900.8,3899.3,0.3116]
[1734353113262,2.56399,3900.2,3899.3,0.3116]
[1734353113551,2.56389,3900.4,3899.3,1.08096]
[1734353114096,2.56383,3900.5,3899.4,0.76934]
[1734353115112,0.7517,3900.8,3899.5,0.02564133]
[1734353115268,0.7517,3900.8,3899.3,1.08096]
[1734353115269,0.02564005,3900.7,3899.3,1.08096]
[1734353115473,0.7517,3900.8,3899.3,1.08096]
[1734353115674,2.56379,3900.5,3899.3,1.08096]
[1734353115874,3.52571083,3900.8,3899.5,0.76931]
[1734353115875,0.7517,3900.8,3899.5,0.76931]
[1734353116594,2.56372,3900.6,3899.5,0.76931]
[1734353117004,2.56372,3900.6,3899.5,0.57761813]
[1734353117220,0.7517,3900.8,3899.3,1.08096]
[1734353117374,2.5638,3900.5,3899.4,0.35653636]
[1734353118410,2.5638,3900.5,3899.4,1.12587636]
[1734353118611,0.3571531,3900.7,3899.6,0.7693]
[1734353118823,2.56372,3900.6,3899.6,0.7693]
[1734353118979,2.56378,3900.5,3899.5,0.3116]
[1734353119803,0.7517,3900.8,3899.5,0.3116]
[1734353119804,2.56391,3900.3,3899.5,0.3116]
[1734353120009,0.57564005,3900.7,3899.5,0.3116]
[1734353120279,2.56411,3900.0,3899.5,0.3116]
[1734353121006,2.56387,3900.4,3899.5,0.3116]
[1734353121316,0.15836911,3900.6,3899.5,0.3116]
[1734353121529,2.56392,3900.3,3899.5,0.3116]
[1734353121729,0.15836911,3900.6,3899.5,0.3116]
[1734353121907,2.56388,3900.4,3899.5,0.3116]
[1734353122420,2.83610491,3900.4,3899.5,0.3116]
[1734353122980,0.27222491,3900.4,3899.5,0.3116]
[1734353123180,0.15836911,3900.6,3899.5,0.3116]
[1734353123485,2.56385,3900.4,3899.5,0.3116]
[1734353124431,2.56436,3899.7,3899.5,0.3116]
[1734353124588,2.56434,3899.7,3898.7,1.08108]
[1734353124784,2.45876191,3900.3,3898.7,0.3116]
[1734353124986,2.56406,3900.1,3899.0,0.76942]
[1734353125188,2.56411,3900.0,3899.0,0.76942]
[1734353125387,1.0703172,3900.6,3899.4,0.3116]
[1734353125598,2.56338,3901.1,3899.9,0.76923]
[1734353125797,2.56344,3901.1,3899.7,0.76928]
[1734353126026,2.56344,3901.1,3899.6,0.3116]
[1734353126027,2.819784,3901.0,3899.6,0.3116]
[1734353126232,2.819784,3901.0,3899.9,0.76924]
[1734353126598,0.256344,3901.0,3899.9,0.76924]
[1734353126914,3.11324,3901.3,3899.7,0.76927]
[1734353127085,2.56352,3900.9,3899.7,0.76927]
[1734353127885,0.7809,3900.9,3899.7,0.76927]
[1734353128227,2.56364,3900.7,3899.6,0.3116]
[1734353128436,2.58935005,3900.6,3899.6,0.3116]
[1734353128621,2.56371,3900.6,3899.6,0.3116]
[1734353128820,1.0703172,3900.8,3899.6,0.3116]
[1734353129132,4.76990443,3900.7,3899.6,1.0809]
[1734353129355,0.66211216,3900.6,3899.6,0.3116]
[1734353129521,2.56364,3900.7,3899.6,1.0809]
[1734353129703,0.88273079,3900.6,3899.6,1.0809]
[1734353130508,1.0703172,3900.6,3899.6,1.0809]
[1734353130813,1.0703172,3900.5,3899.6,1.0809]
[1734353131009,1.32624577,3900.4,3899.6,0.3116]
[1734353131240,1.0703172,3900.5,3899.6,0.3116]
[1734353131550,1.0703172,3900.5,3899.6,1.0809]
[1734353131551,1.954456,3900.5,3899.6,1.0809]
[1734353131748,1.32620821,3900.4,3899.6,1.0809]
[1734353132050,1.0703172,3900.5,3899.6,1.0809]
[1734353132255,3.28125147,3900.4,3899.6,1.0809]
[1734353132456,0.8841388,3900.3,3899.6,1.0809]
[1734353132641,0.88472988,3900.2,3899.6,1.0809]
[1734353132967,1.0703172,3900.4,3899.6,1.0809]
[1734353133113,1.3270586,3900.3,3899.6,0.3116]
[1734353133311,0.88470573,3900.2,3899.6,0.3116]
[1734353133765,1.81569304,3900.3,3899.6,0.3116]
[1734353134060,0.88476489,3900.2,3899.6,0.3116]
[1734353135546,1.81569304,3900.3,3899.6,0.3116]
[1734353135753,2.56431,3899.7,3898.7,1.08107]
[1734353135954,0.88409341,3899.6,3898.7,0.3116]
[1734353136248,0.88400182,3899.5,3898.7,0.3116]
[1734353136448,2.56457,3899.3,3898.7,0.3116]
[1734353136661,2.20960177,3899.2,3899.1,1.081]
[1734353136870,1.0703172,3899.3,3899.1,0.3116]
[1734353137071,1.0703172,3899.8,3899.1,0.3116]
[1734353137430,2.2087243,3899.8,3899.1,0.3116]
[1734353137624,0.74511784,3899.8,3899.1,0.3116]
[1734353137819,1.0703172,3899.9,3899.1,0.3116]
[1734353138027,1.95376894,3900.0,3899.2,0.76938]
[1734353138340,2.20860261,3899.9,3899.1,0.3116]
[1734353138541,0.88345174,3899.8,3899.1,0.3116]
[1734353138740,1.0703172,3899.9,3899.1,0.3116]
[1734353139052,1.32505311,3899.8,3899.1,0.3116]
[1734353139234,1.0703172,3899.9,3899.1,0.3116]
[1734353139641,2.56875528,3899.9,3899.1,0.3116]
[1734353139860,3.30454065,3899.8,3899.1,0.3116]
[1734353140164,3.17929747,3899.9,3899.1,0.3116]
[1734353140165,0.88331061,3899.7,3899.1,0.3116]
[1734353140336,1.68544467,3899.9,3899.1,0.3116]
[1734353140597,3.60777388,3899.8,3899.1,0.3116]
[1734353140868,0.88324621,3899.7,3899.1,0.3116]
[1734353141170,0.88324621,3899.7,3898.4,3.22828191]
[1734353141171,1.0703172,3900.7,3899.7,0.3116]
[1734353141335,4.51755995,3900.6,3899.7,0.3116]
[1734353141677,1.0703172,3900.4,3899.7,0.3116]
[1734353141964,3.27878405,3900.4,3899.7,0.3116]
[1734353142166,2.69714194,3900.3,3899.7,0.3116]
[1734353142327,0.48867509,3900.3,3899.7,0.3116]
[1734353142528,2.44265724,3900.3,3899.7,0.3116]
[1734353142722,2.20915726,3900.2,3899.7,0.3116]
[1734353142922,2.56415,3900.0,3899.7,0.3116]
[1734353143155,1.38666621,3899.9,3899.2,0.3116]
[1734353143364,0.88369543,3899.8,3899.2,0.3116]
[1734353143564,4.54396268,3899.7,3899.2,0.3116]
[1734353143778,3.27950179,3899.6,3898.6,0.3116]
[1734353143956,6.33267866,3899.5,3898.6,0.3116]
[1734353144123,3.27950179,3899.4,3898.6,0.3116]
[1734353144326,2.20918459,3899.3,3898.6,0.3116]
[1734353144522,0.88369543,3899.2,3899.1,0.7694]
[1734353144769,1.0703172,3900.1,3899.2,0.3116]
[1734353144973,2.919891,3900.0,3899.2,0.3116]
[1734353145139,0.88361035,3899.9,3899.2,0.3116]
[1734353145473,1.0703172,3900.2,3899.2,0.3116]
[1734353145645,1.0703172,3900.3,3899.2,2.45876191]
[1734353145847,2.13870049,3900.7,3899.9,0.3116]
[1734353145848,1.0703172,3900.6,3899.9,0.3116]
[1734353146184,3.76148941,3900.6,3899.9,0.3116]
[1734353146330,0.8837895,3900.5,3900.0,0.76923]
[1734353146524,1.0703172,3900.6,3900.0,0.76923]
[1734353146924,3.27983572,3900.6,3900.0,0.76923]
[1734353147124,0.883849,3900.5,3899.9,0.3116]
[1734353147372,1.0703172,3900.8,3899.9,1.36044012]
[1734353147547,1.32570359,3900.7,3900.0,0.76922]
[1734353147762,1.0703172,3900.8,3900.0,0.76922]
[1734353147934,1.32566958,3900.7,3900.0,0.76922]
[1734353148275,1.0703172,3900.8,3900.0,2.45876191]
[1734353148575,1.60796686,3901.0,3900.0,2.45876191]
[1734353148576,1.0703172,3901.3,3900.5,0.3116]
[1734353148865,1.0703172,3901.4,3900.5,0.3116]
[1734353149063,1.32541037,3901.3,3900.5,0.3116]
[1734353149272,0.88333316,3901.2,3900.5,0.3116]
[1734353149429,1.0703172,3901.3,3900.5,0.3116]
[1734353149626,1.5926335,3901.2,3900.5,0.3116]
[1734353149859,0.26782841,3901.2,3900.5,0.3116]
[1734353150222,1.0703172,3900.9,3899.8,0.3116]
[1734353150428,2.5639,3900.4,3899.8,0.3116]
[1734353150670,0.44198172,3900.3,3899.8,0.3116]
[1734353150868,3.88925427,3900.3,3899.8,0.3116]
[1734353151075,2.56404,3900.1,3899.2,0.3116]
[1734353151229,3.44749721,3900.0,3899.2,0.3116]
[1734353151429,2.58978005,3900.0,3899.2,0.3116]
[1734353151630,2.56414,3900.0,3899.2,0.3116]
[1734353152503,0.88402607,3899.9,3899.2,0.3116]
[1734353152805,0.02564005,3899.8,3899.2,0.3116]
[1734353153112,1.25342545,3899.8,3898.9,0.3116]
[1734353153403,1.0703172,3899.6,3898.9,0.3116]
[1734353153557,1.0703172,3899.7,3898.9,0.3116]
[1734353153864,0.88390949,3899.6,3898.9,0.3116]
[1734353154064,1.0703172,3900.0,3899.1,0.76939]
[1734353154311,3.27985498,3899.9,3899.1,0.76939]
[1734353154454,1.0703172,3900.1,3899.5,0.76932]
[1734353154654,1.0703172,3900.3,3899.6,0.7693]
[1734353154896,1.0703172,3900.5,3899.6,0.7693]
[1734353155069,0.88378675,3900.4,3899.7,0.76928]
[1734353155261,1.55201566,3900.5,3899.7,0.76928]
[1734353155465,3.2799051,3900.4,3899.7,0.76928]
[1734353155770,1.55201566,3900.5,3899.8,0.3116]
[1734353155959,0.88383913,3900.4,3899.8,0.3116]
[1734353156151,0.88383913,3900.4,3899.8,1.08086]
[1734353156383,0.48169846,3900.5,3899.8,1.08086]
[1734353156956,0.8834107,3900.4,3899.8,1.08086]
[1734353157152,1.60796686,3900.8,3900.3,0.3116]
[1734353157419,4.70195049,3901.3,3900.3,0.33723762]
[1734353157420,1.0703172,3901.0,3900.3,0.33723762]
[1734353157695,2.56297,3901.8,3900.8,0.76907]
[1734353157696,1.0703172,3901.4,3900.8,0.76907]
[1734353157856,0.88348368,3901.3,3900.8,0.76907]
[1734353158052,1.0703172,3901.5,3900.9,0.3116]
[1734353158288,1.0703172,3901.6,3900.9,1.08063]
[1734353158530,1.15134101,3901.5,3901.0,0.76902]
[1734353158741,0.26782841,3901.5,3900.9,0.3116]
[1734353158901,1.0703172,3901.6,3901.1,0.76901]
[1734353159291,1.0703172,3901.8,3901.1,0.76901]
[1734353159537,1.32524806,3901.7,3900.9,1.08064]
[1734353159828,3.27792781,3901.6,3900.9,0.3116]
[1734353160130,0.88304424,3901.5,3900.9,0.3116]
[1734353160432,0.92148126,3901.6,3900.9,0.3116]
[1734353160433,1.99179846,3901.6,3900.9,0.3116]
[1734353160599,0.90859304,3901.5,3900.9,0.3116]
[1734353160800,0.92148126,3901.6,3900.9,0.3116]
[1734353160990,1.0703172,3901.8,3900.9,0.3116]
[1734353161189,0.88295886,3901.7,3901.2,0.76898]
[1734353161446,1.60796686,3902.1,3901.2,0.76898]
[1734353161447,1.0703172,3902.0,3901.2,0.3116]
[1734353161730,1.0703172,3902.0,3901.1,0.76901]
[1734353161731,1.0703172,3902.4,3901.6,0.3116]
[1734353161931,2.23175904,3902.3,3901.6,0.3116]
[1734353162229,0.88243022,3902.2,3901.6,0.3116]
[1734353162529,2.56259,3902.3,3901.6,0.3116]
[1734353162733,1.0703172,3902.4,3901.6,0.3116]
[1734353163031,0.88202739,3902.3,3901.6,0.3116]
[1734353163278,0.45148146,3902.2,3901.6,0.3116]
[1734353165184,3.6326672,3902.7,3901.6,0.3116]
[1734353165390,2.20328382,3902.6,3901.6,0.3116]
[1734353165686,2.56202,3903.2,3902.2,0.3116]
[1734353166383,1.8482172,3903.3,3902.2,1.08039]
[1734353166534,0.7779,3903.3,3902.2,1.08039]
[1734353166735,0.45378417,3903.2,3902.3,0.76875]
[1734353166953,2.56194,3903.3,3902.2,0.3116]
[1734353167135,1.0703172,3903.5,3902.2,0.3116]
[1734353167385,2.56193,3903.3,3902.2,0.3116]
[1734353167539,2.5618,3903.5,3902.2,1.08039]
[1734353167735,0.44551172,3903.4,3902.3,0.76877]
[1734353168480,0.44551172,3903.4,3902.2,0.3116]
[1734353168481,0.44551172,3903.4,3902.2,1.08039]
[1734353168659,0.44551172,3903.4,3902.2,0.3116]
[1734353168835,2.56202,3903.2,3902.2,0.3116]
[1734353169038,4.4550272,3903.7,3902.2,0.3116]
[1734353169251,2.56187,3903.4,3902.2,1.08039]
[1734353170461,2.56194,3903.3,3902.2,1.08039]
[1734353171086,2.56181,3903.5,3902.2,0.33722347]
[1734353171293,0.823,3903.7,3902.3,0.3116]
[1734353171294,0.44548972,3903.6,3902.3,0.3116]
[1734353171601,3.38467,3903.7,3902.4,0.3116]
[1734353172065,2.56167,3903.7,3902.6,0.76871]
[1734353172395,2.56154,3903.9,3902.9,0.3116]
[1734353172597,0.8249,3904.0,3902.9,0.3116]
[1734353172598,0.8249,3904.0,3902.9,1.08025]
[1734353172902,0.338632,3903.9,3902.9,1.08025]
[1734353173296,2.56159,3903.9,3902.9,0.3116]
[1734353173672,0.8249,3904.0,3902.9,0.3116]
[1734353173872,0.8249,3904.0,3903.0,0.76863]
[1734353174075,2.56141,3904.1,3903.0,0.76863]
[1734353174490,0.90990131,3904.3,3902.9,0.3116]
[1734353174688,2.56155,3903.9,3902.9,0.3116]
[1734353175205,2.56155,3903.9,3902.9,1.08025]
[1734353175500,0.41374732,3904.2,3902.9,0.3116]
[1734353175705,2.56161,3903.8,3902.9,0.3116]
[1734353175904,2.56149,3904.0,3902.9,0.3116]
[1734353176067,0.29752373,3903.9,3902.9,0.3116]
[1734353177042,2.97511732,3904.2,3903.2,0.76859]
[1734353177182,2.97511732,3904.2,3902.4,0.0256194]
[1734353177183,0.43938737,3904.2,3903.0,1.08023]
[1734353177538,2.56148,3904.0,3903.0,1.08023]
[1734353178018,2.97509732,3904.2,3903.0,1.08023]
[1734353178962,0.76868,3904.8,3903.0,2.45876191]
[1734353179168,2.56075,3905.1,3904.0,1.08003]
[1734353179308,2.56052,3905.5,3904.1,0.76841]
[1734353179309,2.56069,3905.2,3904.1,0.76841]
[1734353179744,0.7845,3905.5,3904.0,0.3116]
[1734353179745,2.56078,3905.1,3904.0,0.3116]
[1734353179950,0.256078,3905.0,3904.0,0.3116]
[1734353180148,2.816948,3905.0,3904.0,0.3116]
[1734353180635,2.56088,3904.9,3904.0,0.3116]
[1734353181350,2.56135,3904.2,3904.0,0.3116]
[1734353181555,3.24326191,3904.7,3904.0,0.3116]
[1734353181715,2.56121,3904.4,3904.0,0.3116]
[1734353182065,3.24326191,3904.7,3904.0,0.3116]
[1734353182253,2.56129,3904.3,3904.0,0.3116]
[1734353182611,2.56122,3904.4,3904.0,0.3116]
[1734353182812,3.24326191,3904.7,3904.0,0.3116]
[1734353182813,2.56129,3904.3,3904.0,0.3116]
[1734353183030,2.56136,3904.2,3904.0,0.3116]
[1734353184284,0.58042519,3904.6,3904.0,0.3116]
[1734353184444,2.56152,3904.0,3903.0,0.3116]
[1734353184651,2.56167,3903.7,3903.0,0.3116]
[1734353184844,2.56156,3903.9,3903.0,0.3116]
[1734353185044,2.56161,3903.8,3903.0,0.3116]
[1734353185897,2.45876191,3903.5,3903.0,0.3116]
[1734353186102,2.45876191,3903.5,3900.9,0.76904]
[1734353186103,2.56254,3902.4,3901.7,0.3116]
[1734353186256,2.45876191,3903.1,3901.7,0.3116]
[1734353186257,2.56229,3902.8,3901.7,0.3116]
[1734353186456,2.56254,3902.4,3901.7,0.3116]
[1734353186891,2.5624,3902.6,3901.7,0.3116]
[1734353187093,0.7746,3903.4,3901.8,0.3116]
[1734353187404,2.56227,3902.8,3901.8,0.3116]
[1734353187607,0.32333619,3903.3,3901.6,0.76891]
[1734353187608,2.56209,3903.1,3901.6,0.02561239]
[1734353187772,2.56209,3903.1,3902.1,0.3116]
[1734353188378,2.56213,3903.0,3902.1,0.3116]
[1734353189509,2.56226,3902.8,3902.1,0.3116]
[1734353191078,0.256226,3902.8,3902.1,0.3116]
[1734353191287,2.48440196,3902.7,3900.8,0.3116]
[1734353191594,2.56307,3901.6,3900.8,0.3116]
[1734353191983,2.56317,3901.5,3900.8,0.3116]
[1734353192191,2.56286,3901.9,3900.8,0.3116]
[1734353192192,2.56331,3901.2,3900.8,0.3116]
[1734353192376,2.56298,3901.7,3900.8,0.3116]
[1734353192377,2.56328,3901.3,3900.8,0.3116]
[1734353193268,0.50217419,3901.6,3900.8,0.3116]
[1734353193269,2.56312,3901.5,3900.8,0.3116]
[1734353193503,0.50217419,3901.6,3900.8,0.3116]
[1734353193504,2.56318,3901.4,3900.8,0.3116]
[1734353193751,2.56312,3901.5,3900.8,0.3116]
[1734353193899,2.56321,3901.4,3900.8,0.3116]
[1734353196349,2.45876191,3901.5,3900.8,0.3116]
[1734353196662,2.56351,3900.9,3900.8,0.3116]
[1734353196800,2.56356,3900.9,3900.5,0.3116]
[1734353197171,2.56361,3900.8,3900.5,0.3116]
[1734353197502,2.56332,3901.2,3900.5,0.3116]
[1734353197952,0.24587619,3901.4,3900.5,0.3116]
[1734353198152,2.56331,3901.2,3900.5,0.3116]
[1734353198305,2.5635,3901.0,3900.5,0.3116]
[1734353198501,0.02564005,3901.2,3900.5,0.3116]
[1734353198747,2.45876191,3901.1,3900.5,0.3116]
[1734353198903,2.45876191,3901.1,3899.0,5.45876191]
[1734353198904,2.5637,3900.7,3899.9,0.3116]
[1734353199105,0.33296,3900.6,3899.9,0.3116]
[1734353199532,2.5639,3900.3,3899.9,0.3116]
[1734353199747,2.8967,3900.6,3899.9,0.3116]
[1734353199949,0.7659,3900.5,3898.3,2.45876191]
[1734353200252,2.56398,3900.2,3899.2,0.3116]
[1734353200411,2.56406,3900.1,3899.2,0.3116]
[1734353200613,2.56411,3900.0,3899.2,0.3116]
[1734353200921,2.56418,3899.9,3899.2,0.3116]
[1734353201311,0.33555201,3900.2,3899.2,0.3116]
[1734353201507,2.56403,3900.1,3899.2,0.3116]
[1734353201710,2.45876191,3899.9,3899.2,0.3116]
[1734353202045,2.56455,3899.4,3898.3,1.08116]
[1734353202244,2.56455,3899.4,3898.4,0.3116]
[1734353202468,2.56437,3899.6,3898.4,0.3116]
[1734353202640,2.56446,3899.5,3898.4,0.3116]
[1734353202820,2.45876191,3899.9,3898.4,1.08114]
[1734353203262,2.5644,3899.6,3898.4,1.08114]
[1734353203675,2.45876191,3899.9,3898.4,0.3116]
[1734353203851,2.56446,3899.5,3898.7,0.3116]
[1734353204050,0.8168,3899.8,3898.7,0.3116]
[1734353204270,2.56433,3899.7,3898.7,0.3116]
[1734353204422,0.58398919,3899.7,3898.7,0.3116]
[1734353204794,0.58398919,3899.7,3898.1,0.3116]
[1734353204795,3.20986191,3899.1,3898.1,0.3116]
[1734353204924,2.45876191,3899.1,3898.1,0.3116]
[1734353205272,2.5645,3899.4,3898.1,0.3116]
[1734353205475,2.5645,3899.4,3898.2,0.02564913]
[1734353205759,2.45876191,3899.6,3898.2,0.02564913]
[1734353205760,3.06690619,3899.3,3898.2,0.02564939]
[1734353206134,3.06690619,3899.3,3898.1,1.0812]
[1734353206663,0.50232619,3899.3,3898.1,0.3116]
[1734353206862,2.45876191,3899.2,3898.1,1.0812]
[1734353207066,0.7891,3899.1,3898.1,0.3116]
[1734353207365,3.35379,3899.1,3898.1,0.3116]
[1734353209174,2.56476,3899.0,3898.1,0.3116]
[1734353209376,0.7891,3899.1,3898.1,0.3116]
[1734353209673,0.02564005,3898.9,3898.0,0.40013755]
[1734353209875,0.3273502,3898.9,3898.0,0.40013755]
[1734353210037,2.8921802,3898.9,3898.0,0.40013755]
[1734353210368,2.5649,3898.8,3898.0,0.40013755]
[1734353210552,2.56503,3898.6,3898.0,0.40013755]
[1734353210766,2.5649,3898.8,3898.0,0.40013755]
[1734353210939,2.93559903,3898.8,3898.0,0.40013755]
[1734353211579,2.56497,3898.7,3898.0,0.40013755]
[1734353212091,0.02564005,3898.6,3898.0,0.40013755]
[1734353212224,2.56529,3898.2,3898.0,0.40013755]
[1734353212871,0.8099,3898.0,3897.1,0.3116]
[1734353213031,0.8099,3898.0,3897.2,0.40054365]
[1734353213237,2.56565,3897.7,3897.2,0.40054365]
[1734353213595,2.56569,3897.6,3897.2,0.40054365]
[1734353213875,2.5655,3897.9,3897.2,0.40054365]
[1734353214096,3.36448,3898.5,3897.3,0.3116]
[1734353214232,2.56515,3898.4,3897.3,0.3116]
[1734353214435,2.56548,3898.0,3897.3,0.3116]
[1734353214631,2.822028,3898.0,3897.3,0.3116]
[1734353215164,0.256548,3898.0,3897.3,0.3116]
[1734353215391,0.7994,3898.5,3897.3,0.3116]
[1734353215392,2.56535,3898.1,3897.3,0.3116]
[1734353215677,2.56521,3898.4,3897.3,0.3116]
[1734353216182,2.56515,3898.5,3897.3,0.3116]
[1734353216386,1.15649903,3898.8,3897.3,0.3116]
[1734353216680,2.56524,3898.3,3897.3,0.3116]
[1734353217037,1.15649903,3898.8,3897.5,0.3116]
[1734353217237,1.15649903,3898.8,3897.6,0.02565457]
[1734353217487,2.5649,3898.8,3897.7,1.08126]
[1734353217652,2.5649,3898.8,3897.8,0.3116]
[1734353218238,0.7937,3899.4,3897.8,0.3116]
[1734353218441,1.537,3901.5,3898.0,0.3116]
[1734353218442,3.37905,3899.7,3898.0,0.3116]
[1734353218766,2.56463,3899.2,3898.3,0.3116]
[1734353219676,2.56448,3899.5,3898.3,0.3116]
[1734353220084,2.45876191,3899.3,3898.3,0.3116]
[1734353220256,2.56516,3898.4,3897.6,0.3116]
[1734353221179,2.56515,3898.5,3897.6,0.3116]
[1734353221902,2.56495,3898.8,3897.6,0.76969]
[1734353222049,3.9190232,3899.2,3897.7,0.3116]
[1734353222050,2.56497,3898.7,3897.7,0.3116]
[1734353222252,2.56497,3898.7,3897.8,0.3116]
[1734353222997,2.5651,3898.5,3897.8,0.3116]
[1734353223350,2.56496,3898.7,3897.8,0.3116]
[1734353223789,1.3543832,3899.2,3897.8,0.3116]
[1734353224119,2.56494,3898.8,3897.8,0.3116]
[1734353224320,2.56497,3898.7,3897.8,0.3116]
[1734353224545,2.56521,3898.4,3897.8,0.3116]
[1734353225224,2.56565,3897.7,3897.3,0.3116]
[1734353226217,2.56569,3897.6,3897.3,0.3116]
[1734353226421,2.56569,3897.6,3897.2,0.40054365]
[1734353227730,2.56574,3897.6,3897.2,0.40054365]
[1734353227945,3.23146191,3897.7,3895.9,0.77003]
[1734353228091,0.32314619,3897.6,3896.7,0.40061557]
[1734353228285,2.566,3897.2,3896.7,0.40061557]
[1734353228491,0.32314619,3897.6,3896.7,0.40061557]
[1734353228815,2.56582,3897.4,3896.7,0.40061557]
[1734353229229,2.56588,3897.3,3896.7,0.40061557]
[1734353229696,2.56598,3897.2,3896.7,0.40061557]
[1734353230096,2.56601,3897.1,3896.7,0.40061557]
[1734353230308,0.76,3897.9,3896.7,0.40061557]
[1734353230494,2.56564,3897.7,3897.1,0.3116]
[1734353230697,2.56568,3897.6,3897.1,0.3116]
[1734353231035,2.56573,3897.6,3897.1,0.3116]
[1734353231244,2.56577,3897.5,3897.1,0.3116]
[1734353231725,0.32187619,3897.8,3896.8,0.3116]
[1734353231898,2.56591,3897.3,3896.8,0.3116]
[1734353232540,2.56601,3897.1,3896.7,0.40061557]
[1734353233408,2.56601,3897.1,3896.1,0.3116]
[1734353233613,2.56601,3897.1,3895.8,0.4109523]
[1734353233614,3.39341,3897.1,3895.8,0.4109523]
[1734353233942,3.39341,3897.1,3896.3,0.40066775]
[1734353234648,3.39341,3897.1,3895.8,0.4109523]
[1734353234649,3.94341,3897.1,3895.8,0.4109523]
[1734353234793,3.94341,3897.1,3895.9,0.40069485]
[1734353234995,0.781,3896.7,3895.9,0.40069485]
[1734353235360,3.1168,3895.9,3895.8,0.4109523]
[1734353235498,2.45876191,3895.1,3894.6,0.40071533]
[1734353235700,0.23681653,3895.1,3894.6,0.40071533]
[1734353235899,2.80413653,3895.1,3894.6,0.40071533]
[1734353236138,3.58513653,3895.1,3893.8,0.39077173]
[1734353236449,7.58429957,3895.1,3895.0,1e-05]
[1734353236594,3.55,3895.0,3893.8,0.47997768]
[1734353236954,2.56811,3893.9,3893.8,0.07917173]
[1734353237258,3.91851,3893.3,3893.2,6.18e-06]
[1734353237547,0.55,3893.2,3891.9,0.1609523]
[1734353237841,2.88434929,3892.8,3891.9,0.1609523]
[1734353238051,2.56936,3892.1,3891.9,0.1609523]
[1734353238497,5.45349929,3892.4,3891.9,0.1609523]
[1734353238498,0.02564005,3892.3,3891.9,0.1609523]
[1734353238694,0.41552299,3893.7,3891.9,0.1609523]
[1734353238695,3.66204929,3893.2,3891.9,0.1609523]
[1734353238900,5.45270929,3893.6,3892.2,0.77076]
[1734353239096,5.45270929,3893.6,3892.0,0.3116]
[1734353239097,2.88434929,3893.6,3892.0,0.3116]
[1734353239345,0.7777,3893.8,3892.1,0.02568953]
[1734353239524,0.30700369,3894.2,3892.0,0.3116]
[1734353239525,0.30700369,3894.2,3892.3,0.77075]
[1734353239725,0.30700369,3894.2,3893.0,0.7706]
[1734353239912,2.88434929,3894.4,3892.8,0.3116]
[1734353240111,2.5684,3893.5,3892.8,0.3116]
[1734353240311,2.59411005,3893.4,3892.3,0.3116]
[1734353240512,2.88434929,3893.6,3892.3,0.3116]
[1734353240513,3.69504929,3894.0,3892.3,0.3116]
[1734353240713,0.8107,3894.6,3893.0,0.3116]
[1734353240938,0.77694005,3895.1,3893.4,0.77053]
[1734353241144,0.7513,3895.1,3893.3,0.3116]
[1734353241502,0.8125,3895.5,3894.2,0.77037]
[1734353241730,0.8125,3895.5,3893.7,0.3116]
[1734353241901,0.8125,3895.5,3893.8,0.77045]
[1734353241902,2.5672,3895.3,3893.8,0.77045]
[1734353242097,0.02564005,3895.2,3893.9,0.77043]
[1734353242348,0.02564005,3895.2,3893.6,0.77048]
[1734353242349,2.56741,3895.0,3893.6,0.77048]
[1734353242527,2.59305005,3895.0,3893.6,0.77048]
[1734353242730,0.259305,3894.9,3893.7,0.77046]
[1734353242929,0.80654005,3894.8,3893.1,0.3116]
[1734353243128,0.55,3894.7,3893.1,0.3116]
[1734353243334,0.55,3894.7,3893.1,1.08217]
[1734353243335,2.56774,3894.5,3893.1,1.08217]
[1734353243552,0.02564005,3894.4,3892.6,0.77067]
[1734353243844,0.02564005,3894.4,3892.3,1.08234]
[1734353243845,0.55,3894.3,3892.3,1.08234]
[1734353244057,2.56799,3894.1,3892.8,0.77065]
[1734353244217,2.56845,3893.4,3891.7,0.3116]